fUST/lending_fUST_20260112
["ID","MTS","AMOUNT","RATE_DAILY","PERIOD"]
[401371410,1768162242753,-151.0,0.0002487,7]
[401371411,1768162242762,-151.0,0.00024897,2]
[401371412,1768162242772,-151.0,0.00024897,2]
[401371413,1768162242781,-151.0,0.00024897,2]
[401371414,1768162242791,-151.61039102,0.00024897,2]
[401371415,1768162242799,-151.0,0.000249,7]
[401371416,1768162242808,-151.0,0.000249,7]
[401371417,1768162242817,-151.0,0.000249,7]
[401371418,1768162242826,-151.0,0.000249,7]
[401371419,1768162242834,-151.0,0.000249,7]
[401371420,1768162242843,-151.0,0.000249,7]
[401371421,1768162242852,-151.0,0.000249,7]
[401371422,1768162242860,-151.0,0.000249,7]
[401371423,1768162242869,-200.586455,0.000249,7]
[401371424,1768162242878,-243.363595,0.000249,7]
[401371425,1768162242886,-151.0,0.000249,7]
[401371426,1768162242895,-151.0,0.000249,7]
[401371427,1768162242904,-151.0,0.000249,7]
[401371428,1768162242913,-163.811911,0.000249,7]
[401371429,1768162242922,-700.258706,0.000249,7]
[401371430,1768162242931,-700.258706,0.000249,7]
[401371431,1768162242939,-157.400999,0.000249,7]
[401371432,1768162242948,-700.258706,0.000249,7]
[401371433,1768162242957,-700.258706,0.000249,7]
[401371434,1768162242966,-177.831998,0.000249,7]
[401371435,1768162242979,-151.0,0.000249,7]
[401371436,1768162242988,-151.0,0.000249,7]
[401371437,1768162242997,-306.783496,0.000249,7]
[401371438,1768162243006,-306.783496,0.000249,7]
[401371439,1768162243017,-306.783496,0.000249,7]
[401371440,1768162243026,-306.783496,0.000249,7]
[401371441,1768162243034,-151.0,0.000249,7]
[401371442,1768162243043,-162.881798,0.000249,7]
[401371443,1768162243052,-277.4352,0.000249,7]
[401371445,1768162243060,-277.4352,0.000249,7]
[401371446,1768162243069,-277.4352,0.000249,7]
[401371448,1768162243079,-277.4352,0.000249,7]
[401371449,1768162243087,-151.0,0.000249,7]
[401371450,1768162243096,-151.0,0.000249,7]
[401371451,1768162243105,-466.694893,0.000249,7]
[401371452,1768162243114,-466.694893,0.000249,7]
[401371453,1768162243122,-466.694893,0.000249,7]
[401371454,1768162243131,-466.694893,0.000249,7]
[401371455,1768162243140,-151.0,0.000249,7]
[401371456,1768162243149,-629.317095,0.000249,7]
[401371457,1768162243158,-629.317095,0.000249,7]
[401371458,1768162243167,-629.317095,0.000249,7]
[401371459,1768162243176,-629.317095,0.000249,7]
[401371460,1768162243186,-3685.53057,0.000249,7]
[401371461,1768162243197,-3685.53057,0.000249,7]
[401371462,1768162243206,-3685.53057,0.000249,7]
[401371463,1768162243215,-3685.53057,0.000249,7]
[401371464,1768162243226,-248.949419,0.000249,7]
[401371465,1768162243235,-248.949419,0.000249,7]
[401371466,1768162243244,-248.949419,0.000249,7]
[401371467,1768162243253,-248.949419,0.000249,7]
[401371468,1768162243262,-151.0,0.000249,7]
[401371469,1768162243272,-277.341841,0.000249,7]
[401371470,1768162243281,-209.833157,0.000249,7]
[401371471,1768162243290,-151.0,0.000249,7]
[401371472,1768162243299,-499.381508,0.000249,7]
[401371473,1768162243308,-499.381508,0.000249,7]
[401371474,1768162243318,-499.381508,0.000249,7]
[401371475,1768162243327,-499.381508,0.000249,7]
[401371476,1768162243337,-173.181884,0.000249,7]
[401371477,1768162243346,-173.181884,0.000249,7]
[401371478,1768162243355,-151.0,0.000249,7]
[401371479,1768162243364,-173.181884,0.000249,7]
[401371480,1768162243374,-151.0,0.000249,7]
[401371481,1768162243384,-173.181884,0.000249,7]
[401371482,1768162243393,-158.288397,0.000249,7]
[401371483,1768162243403,-189.77985,0.000249,7]
[401371484,1768162243412,-189.77985,0.000249,7]
[401371485,1768162243423,-189.77985,0.000249,7]
[401371486,1768162243432,-189.77985,0.000249,7]
[401371487,1768162243441,-221.941164,0.000249,7]
[401371488,1768162243451,-221.941164,0.000249,7]
[401371489,1768162243460,-1028.111698,0.000249,7]
[401371490,1768162243469,-221.941164,0.000249,7]
[401371491,1768162243478,-1028.111698,0.000249,7]
[401371492,1768162243487,-151.0,0.000249,7]
[401371493,1768162243497,-221.941164,0.000249,7]
[401371494,1768162243506,-1028.111698,0.000249,7]
[401371495,1768162243516,-216.089114,0.000249,7]
[401371496,1768162243525,-216.089114,0.000249,7]
[401371497,1768162243534,-89.94271419,0.000249,7]
[401371523,1768162243900,-272.33990001,0.00020365,2]
[401371525,1768162243912,-272.74300499,0.00020365,2]
[401371527,1768162243921,-446.17736256,0.00023418,2]
[401371529,1768162243931,-122.60551642,0.000249,7]
[401371751,1768162245932,-815.56346739,0.000249,7]
[401371753,1768162245942,-216.089114,0.000249,7]
[401371755,1768162245951,-216.089114,0.000249,7]
[401371757,1768162245961,-151.0,0.000249,7]
[401371759,1768162245971,-151.0,0.000249,7]
[401371761,1768162245981,-151.0,0.000249,7]
[401371763,1768162245991,-151.0,0.000249,7]
[401371765,1768162246000,-151.0,0.000249,7]
[401371767,1768162246009,-151.0,0.000249,7]
[401371769,1768162246018,-151.0,0.000249,7]
[401371771,1768162246027,-151.0,0.000249,7]
[401371773,1768162246037,-151.0,0.000249,7]
[401371775,1768162246048,-156307.31747235,0.000249,2]
[401372205,1768162804314,152.31,5e-05,2]
[401372350,1768163404956,153.16,5e-05,2]
[401372516,1768163438095,-433.18211007,0.0001,2]
[401372517,1768163438105,-560.0,0.0001,2]
[401372518,1768163438115,-153.16,0.0001,2]
[401372519,1768163438125,-297.07983088,0.00010151,2]
[401372520,1768163438135,-300.0,0.00010924,2]
[401372521,1768163438144,-1200.0,0.00010924,2]
[401372522,1768163438154,-300.0,0.00010925,2]
[401372523,1768163438164,-300.0,0.00010925,2]
[401372524,1768163438173,-300.0,0.00010925,2]
[401372525,1768163438181,-300.0,0.00010925,2]
[401372526,1768163438191,-300.0,0.00010925,2]
[401372527,1768163438200,-300.0,0.00010925,2]
[401372528,1768163438210,-300.0,0.00010925,2]
[401372529,1768163438220,-300.0,0.00010925,2]
[401372530,1768163438229,-300.0,0.00010925,2]
[401372531,1768163438238,-300.0,0.00010925,2]
[401372532,1768163438248,-300.0,0.00010925,2]
[401372533,1768163438258,-300.0,0.00010925,2]
[401372534,1768163438267,-300.0,0.00010925,2]
[401372535,1768163438276,-300.0,0.00010925,2]
[401372536,1768163438286,-300.0,0.00010925,2]
[401372537,1768163438295,-600.0,0.00010925,2]
[401372538,1768163438304,-420.0,0.00012005,2]
[401372539,1768163438314,-720.0,0.00012018,2]
[401372540,1768163438323,-350.55420044,0.00012151,2]
[401372541,1768163438332,-587.0,0.00013193,2]
[401372542,1768163438342,-864.0,0.0001322,2]
[401372543,1768163438353,-500.0,0.00013273,2]
[401372544,1768163438363,-404.02857,0.00014152,2]
[401372545,1768163438373,-639.0,0.00014499,2]
[401372546,1768163438383,-1000.0,0.00014541,2]
[401372547,1768163438392,-1000.0,0.00015,2]
[401372548,1768163438401,-153.16,0.000151,2]
[401372549,1768163438411,-1000.0,0.00015996,2]
[401372550,1768163438422,-244.0,0.00015996,2]
[401372551,1768163438432,-215.80455964,0.00016,2]
[401372552,1768163438442,-457.50293956,0.00016152,2]
[401372553,1768163438451,-336.953065,0.00016162,2]
[401372554,1768163438461,-500.0,0.00016777,2]
[401372555,1768163438470,-500.0,0.00016777,2]
[401372556,1768163438481,-500.0,0.00016777,2]
[401372557,1768163438491,-500.0,0.00016777,2]
[401372558,1768163438501,-500.0,0.00016777,2]
[401372559,1768163438511,-500.0,0.00016777,2]
[401372560,1768163438521,-500.0,0.00016777,2]
[401372561,1768163438530,-500.0,0.00016777,2]
[401372562,1768163438540,-500.0,0.00016777,2]
[401372563,1768163438550,-421.54227878,0.00016777,2]
[401372564,1768163438559,-500.0,0.00016777,2]
[401372565,1768163438569,-500.0,0.00016777,2]
[401372566,1768163438578,-500.0,0.00016777,2]
[401372567,1768163438588,-30988.83201973,0.00016778,2]
[401372568,1768163438598,-5000.0,0.00016989,2]
[401372569,1768163438607,-500.0,0.00016989,2]
[401372570,1768163438616,-594.07266635,0.00016989,2]
[401372571,1768163438625,-763.51099191,0.00016989,2]
[401372572,1768163438635,-432.37225915,0.00016989,2]
[401372573,1768163438644,-763.51099191,0.00016989,2]
[401372574,1768163438654,-763.51099191,0.00016989,2]
[401372575,1768163438664,-500.0,0.00016989,2]
[401372576,1768163438673,-763.51099191,0.00016989,2]
[401372577,1768163438682,-763.51099191,0.00016989,2]
[401372578,1768163438692,-763.51099191,0.00016989,2]
[401372579,1768163438702,-763.51099191,0.00016989,2]
[401372580,1768163438711,-763.51099191,0.00016989,2]
[401372581,1768163438720,-763.51099191,0.00016989,2]
[401372582,1768163438730,-763.51099191,0.00016989,2]
[401372583,1768163438739,-763.51099191,0.00016989,2]
[401372584,1768163438749,-763.51099191,0.00016989,2]
[401372585,1768163438759,-763.51099191,0.00016989,2]
[401372586,1768163438769,-763.51099191,0.00016989,2]
[401372587,1768163438779,-763.51099191,0.00016989,2]
[401372588,1768163438789,-763.51099191,0.00016989,2]
[401372589,1768163438799,-100000.0,0.0001699,2]
[401372590,1768163438808,-279.0,0.0001699,3]
[401372591,1768163438817,-837.04,0.0001699,3]
[401372592,1768163438827,-67008.42585452,0.00017,2]
[401372593,1768163438836,-1000.0,0.00017595,2]
[401372594,1768163438846,-492.0,0.00017595,2]
[401372595,1768163438856,-2136.47349432,0.000176,2]
[401372596,1768163438866,-161769.51166541,0.00018,2]
[401372597,1768163438875,-510.97730912,0.00018151,2]
[401372598,1768163438885,-558.0,0.0001836,3]
[401372599,1768163438895,-502.69926409,0.000189,2]
[401372600,1768163438905,-17960.14853983,0.00019,2]
[401372601,1768163438914,-2603.49,0.00019,2]
[401372602,1768163438924,-1000.0,0.00019355,2]
[401372603,1768163438934,-791.0,0.00019355,2]
[401372604,1768163438944,-2452.24,0.000194,2]
[401372605,1768163438954,-164.09,0.000194,2]
[401372606,1768163438964,-163.0,0.000194,2]
[401372607,1768163438974,-336.953065,0.00019587,2]
[401372608,1768163438984,-916.01944817,0.00019661,2]
[401372609,1768163438994,-791.51411322,0.00019679,2]
[401372610,1768163439004,-292.0,0.00019758,2]
[401372611,1768163439015,-1811.03788781,0.000199,2]
[401372612,1768163439025,-1041.66666667,0.0001992,2]
[401372613,1768163439035,-374.0,0.0001998,2]
[401372614,1768163439044,-210.86943189,0.0002,2]
[401372615,1768163439054,-652.55120361,0.0002,2]
[401372616,1768163439064,-14696.06851441,0.0002,2]
[401372617,1768163439074,-371.48046337,0.0002,2]
[401372618,1768163439084,-717.29999854,0.0002,2]
[401372619,1768163439094,-78214.50227922,0.0002,2]
[401372620,1768163439104,-23000.0,0.0002,2]
[401372621,1768163439114,-202.6566192,0.0002,2]
[401372622,1768163439124,-504.09317231,0.0002,2]
[401372623,1768163439134,-159.95633515,0.0002,2]
[401372624,1768163439144,-24199.26,0.0002,2]
[401372625,1768163439154,-153.16,0.000201,2]
[401372626,1768163439165,-485.24067775,0.0002013,2]
[401372627,1768163439175,-564.45167868,0.00020151,2]
[401372628,1768163439186,-5000.0,0.00020386,2]
[401372629,1768163439196,-151.0,0.000205,3]
[401372630,1768163439206,-1388.8426127,0.0002061,2]
[401372631,1768163439215,-256.38902735,0.000209,2]
[401372632,1768163439226,-277.25260667,0.00021,2]
[401372633,1768163439236,-299.999999,0.00021,2]
[401372634,1768163439246,-50000.0,0.00021,2]
[401372635,1768163439256,-151.0,0.000212,3]
[401372636,1768163439265,-1000.0,0.0002129,10]
[401372637,1768163439275,-1000.0,0.0002129,10]
[401372638,1768163439284,-1811.03788777,0.000214,2]
[401372639,1768163439294,-1039.48725245,0.000215,2]
[401372640,1768163439304,-12857.92042375,0.000215,2]
[401372641,1768163439314,-2470.8363284,0.00021822,2]
[401372642,1768163439324,-151.0,0.000219,4]
[401372643,1768163439334,-71098.85167872,0.00022,2]
[401372644,1768163439346,-5000.0,0.00022085,2]
[401372645,1768163439356,-2470.8363284,0.00022142,2]
[401372646,1768163439365,-617.92604823,0.00022152,2]
[401372647,1768163439375,-3664.07779267,0.00022179,2]
[401372648,1768163439385,-2470.8363284,0.00022252,2]
[401372649,1768163439395,-369.30890134,0.00022375,6]
[401372650,1768163439404,-574.1,0.0002246,2]
[401372651,1768163439414,-300.0,0.00022466,2]
[401372652,1768163439424,-151.0,0.000226,10]
[401372653,1768163439434,-2470.8363284,0.00022728,2]
[401372654,1768163439444,-24199.26,0.000228,2]
[401372655,1768163439453,-2470.8363284,0.00022804,2]
[401372656,1768163439463,-1811.03788777,0.000229,2]
[401372657,1768163439472,-336.953065,0.00023012,2]
[401372658,1768163439481,-450.0,0.00023014,2]
[401372659,1768163439490,-5714.0,0.00023015,2]
[401372660,1768163439499,-2452.24,0.000231,14]
[401372661,1768163439509,-5714.0,0.00023152,2]
[401372662,1768163439518,-2470.8363284,0.00023277,2]
[401372663,1768163439527,-5714.0,0.00023289,2]
[401372664,1768163439537,-151.0,0.000233,9]
[401372665,1768163439546,-286.932,0.000234,3]
[401372666,1768163439555,-178.05374538,0.000234,3]
[401372667,1768163439564,-1000.0,0.00023419,10]
[401372668,1768163439575,-1000.0,0.00023419,10]
[401372669,1768163439584,-579.0,0.00023419,10]
[401372670,1768163439594,-5714.0,0.00023426,2]
[401372671,1768163439604,-151.0,0.00023431,2]
[401372672,1768163439613,-151.0,0.00023431,2]
[401372673,1768163439622,-151.0,0.00023431,2]
[401372674,1768163439631,-151.0,0.00023431,2]
[401372675,1768163439641,-151.0,0.00023431,2]
[401372676,1768163439650,-151.0,0.00023431,2]
[401372677,1768163439659,-151.0,0.00023431,2]
[401372678,1768163439669,-250.0,0.00023431,2]
[401372679,1768163439678,-250.0,0.00023431,2]
[401372680,1768163439688,-496.47127164,0.00023431,2]
[401372681,1768163439697,-151.0,0.00023431,2]
[401372682,1768163439707,-151.0,0.00023431,2]
[401372683,1768163439716,-250.0,0.00023431,2]
[401372684,1768163439725,-250.0,0.00023431,2]
[401372685,1768163439735,-250.0,0.00023431,2]
[401372686,1768163439744,-500.0,0.00023431,2]
[401372687,1768163439754,-151.0,0.00023431,2]
[401372688,1768163439763,-250.0,0.00023431,2]
[401372689,1768163439772,-250.0,0.00023431,2]
[401372690,1768163439781,-151.0,0.00023431,2]
[401372691,1768163439790,-250.0,0.00023431,2]
[401372692,1768163439800,-500.0,0.00023431,2]
[401372694,1768163439809,-151.0,0.00023431,2]
[401372695,1768163439818,-250.0,0.00023431,2]
[401372696,1768163439827,-250.0,0.00023431,2]
[401372697,1768163439837,-151.0,0.00023431,2]
[401372698,1768163439847,-250.0,0.00023431,2]
[401372699,1768163439856,-500.0,0.00023431,2]
[401372700,1768163439866,-151.0,0.00023431,2]
[401372701,1768163439875,-250.0,0.00023431,2]
[401372702,1768163439885,-250.0,0.00023431,2]
[401372703,1768163439894,-250.0,0.00023431,2]
[401372704,1768163439904,-151.0,0.00023431,2]
[401372705,1768163439914,-500.0,0.00023431,2]
[401372706,1768163439924,-151.0,0.00023431,2]
[401372708,1768163439933,-2030.29667201,0.00023431,2]
[401372709,1768163440040,-151.0,0.00023431,2]
[401372710,1768163440051,-252.94566259,0.00023431,2]
[401372711,1768163440060,-250.0,0.00023431,2]
[401372712,1768163440070,-151.0,0.00023431,2]
[401372714,1768163440080,-500.0,0.00023431,2]
[401372716,1768163440089,-151.0,0.00023431,2]
[401372717,1768163440098,-151.0,0.00023431,2]
[401372720,1768163440108,-250.0,0.00023431,2]
[401372722,1768163440117,-250.0,0.00023431,2]
[401372723,1768163440127,-151.0,0.00023431,2]
[401372725,1768163440136,-151.0,0.00023431,2]
[401372728,1768163440146,-151.0,0.00023431,2]
[401372729,1768163440155,-265.04542702,0.00023431,2]
[401372732,1768163440164,-500.0,0.00023431,2]
[401372734,1768163440174,-151.0,0.00023431,2]
[401372735,1768163440183,-250.0,0.00023431,2]
[401372737,1768163440192,-151.0,0.00023431,2]
[401372739,1768163440202,-151.0,0.00023431,2]
[401372741,1768163440211,-500.0,0.00023431,2]
[401372743,1768163440220,-151.0,0.00023431,2]
[401372745,1768163440229,-250.0,0.00023431,2]
[401372747,1768163440238,-151.0,0.00023431,2]
[401372749,1768163440247,-151.0,0.00023431,2]
[401372751,1768163440256,-500.0,0.00023431,2]
[401372753,1768163440266,-151.0,0.00023431,2]
[401372755,1768163440275,-151.0,0.00023431,2]
[401372757,1768163440284,-250.0,0.00023431,2]
[401372759,1768163440293,-151.0,0.00023431,2]
[401372761,1768163440303,-500.0,0.00023431,2]
[401372763,1768163440311,-151.0,0.00023431,2]
[401372765,1768163440321,-151.0,0.00023431,2]
[401372767,1768163440330,-151.0,0.00023431,2]
[401372769,1768163440340,-250.0,0.00023431,2]
[401372771,1768163440352,-151.0,0.00023431,2]
[401372773,1768163440361,-500.0,0.00023431,2]
[401372775,1768163440370,-151.0,0.00023431,2]
[401372777,1768163440379,-151.0,0.00023431,2]
[401372779,1768163440389,-151.0,0.00023431,2]
[401372781,1768163440399,-250.0,0.00023431,2]
[401372783,1768163440408,-151.0,0.00023431,2]
[401372785,1768163440420,-30000.0,0.00023431,2]
[401372787,1768163440429,-500.0,0.00023431,2]
[401372790,1768163440441,-151.0,0.00023431,2]
[401372791,1768163440449,-151.0,0.00023431,2]
[401372793,1768163440459,-241.8234162,0.00023431,2]
[401372795,1768163440468,-250.0,0.00023431,2]
[401372797,1768163440478,-151.0,0.00023431,2]
[401372799,1768163440487,-151.0,0.00023431,2]
[401372801,1768163440497,-151.0,0.00023431,2]
[401372803,1768163440506,-250.0,0.00023431,2]
[401372805,1768163440515,-151.0,0.00023431,2]
[401372807,1768163440524,-151.0,0.00023431,2]
[401372809,1768163440533,-151.0,0.00023431,2]
[401372811,1768163440542,-250.0,0.00023431,2]
[401372813,1768163440551,-151.0,0.00023431,2]
[401372815,1768163440560,-2398.4119403,0.00023431,2]
[401372817,1768163440569,-151.0,0.00023431,2]
[401372819,1768163440579,-151.0,0.00023431,2]
[401372821,1768163440588,-151.0,0.00023431,2]
[401372823,1768163440597,-151.0,0.00023431,2]
[401372825,1768163440606,-151.0,0.00023431,2]
[401372827,1768163440617,-151.0,0.00023431,2]
[401372829,1768163440626,-151.0,0.00023431,2]
[401372831,1768163440635,-151.0,0.00023431,2]
[401372833,1768163440644,-151.0,0.00023431,2]
[401372835,1768163440654,-151.0,0.00023431,2]
[401372837,1768163440662,-151.0,0.00023431,2]
[401372839,1768163440671,-500.0,0.00023431,2]
[401372841,1768163440681,-151.0,0.00023431,2]
[401372843,1768163440691,-500.0,0.00023431,2]
[401372845,1768163440700,-152.53645226,0.00023431,2]
[401372847,1768163440710,-151.0,0.00023431,2]
[401372849,1768163440718,-500.0,0.00023431,2]
[401372851,1768163440727,-151.0,0.00023431,2]
[401372853,1768163440737,-500.0,0.00023431,2]
[401372855,1768163440746,-151.0,0.00023431,2]
[401372857,1768163440755,-151.0,0.00023431,2]
[401372859,1768163440765,-311.85701,0.00023431,2]
[401372861,1768163440774,-151.0,0.00023431,2]
[401372863,1768163440783,-151.0,0.00023431,2]
[401372865,1768163440792,-151.0,0.00023431,2]
[401372867,1768163440802,-151.0,0.00023431,2]
[401372869,1768163440811,-151.0,0.00023431,2]
[401372871,1768163440820,-151.0,0.00023431,2]
[401372873,1768163440830,-156.587,0.00023431,2]
[401372875,1768163440839,-151.0,0.00023431,2]
[401372877,1768163440848,-152.09143049,0.00023431,2]
[401372879,1768163440857,-151.0,0.00023431,2]
[401372881,1768163440867,-151.0,0.00023431,2]
[401372883,1768163440875,-151.0,0.00023431,2]
[401372885,1768163440884,-151.0,0.00023431,2]
[401372887,1768163440894,-250.0,0.00023431,2]
[401372889,1768163440903,-151.0,0.00023431,2]
[401372891,1768163440912,-250.0,0.00023431,2]
[401372893,1768163440922,-250.0,0.00023431,2]
[401372894,1768163440931,-250.0,0.00023431,2]
[401372896,1768163440940,-250.0,0.00023431,2]
[401372899,1768163440950,-250.0,0.00023431,2]
[401372900,1768163440959,-250.0,0.00023431,2]
[401372903,1768163440969,-250.0,0.00023431,2]
[401372905,1768163440978,-291.2784889,0.00023431,2]
[401372907,1768163440988,-2470.8363284,0.0002349,2]
[401372909,1768163440998,-167.64,0.000235,7]
[401372911,1768163441007,-600.0,0.00023562,2]
[401372913,1768163441016,-5714.0,0.00023563,2]
[401372915,1768163441026,-1784.25103947,0.00023574,6]
[401372917,1768163441035,-5714.0,0.000237,2]
[401372919,1768163441044,-5683.56227101,0.00023706,6]
[401372921,1768163441053,-2470.8363284,0.00023739,2]
[401372923,1768163441063,-5714.0,0.00023837,2]
[401372925,1768163441072,-574.1,0.00023902,2]
[401372927,1768163441082,-5714.0,0.00023974,2]
[401372929,1768163441092,-296.59935167,0.00023979,2]
[401372931,1768163441102,-514.84070869,0.00023979,2]
[401372933,1768163441112,-13786.79508522,0.00023979,2]
[401372936,1768163441128,-706.64386769,0.00023979,2]
[401372938,1768163441138,-8017.88949958,0.00023979,2]
[401372942,1768163441166,-500.0,0.00016777,2]
[401372944,1768163441175,-8598.67154751,0.00023979,2]
[401372946,1768163441185,-2487.15318209,0.00023979,2]
[401372948,1768163441194,-323.39571937,0.00023979,2]
[401372950,1768163441204,-506.7938,0.00023982,2]
[401372952,1768163441213,-506.7938,0.00023982,3]
[401372954,1768163441221,-506.7938,0.00023982,5]
[401372956,1768163441230,-353.04,0.00023982,2]
[401372958,1768163441239,-506.7938,0.00023983,2]
[401372960,1768163441249,-506.7938,0.00023983,3]
[401372962,1768163441259,-253.3924,0.00023983,5]
[401372964,1768163441268,-506.7938,0.00023983,2]
[401372966,1768163441277,-506.7938,0.00023983,3]
[401372968,1768163441286,-506.7938,0.00023983,5]
[401372970,1768163441296,-506.7938,0.00023983,2]
[401372972,1768163441305,-506.7938,0.00023983,3]
[401372975,1768163441314,-506.7924,0.00023983,5]
[401372977,1768163441324,-206.29,0.00023983,2]
[401372979,1768163441333,-506.7938,0.00023983,2]
[401372981,1768163441344,-25.64820908,0.00023983,3]
[401372983,1768163441357,-481.13799092,0.00023983,3]
[401372985,1768163441366,-506.7938,0.00023983,2]
[401372987,1768163441375,-506.7938,0.00023983,3]
[401372989,1768163441384,-506.7924,0.00023983,5]
[401372991,1768163441400,-506.7938,0.00023983,2]
[401372993,1768163441413,-506.7938,0.00023983,3]
[401372994,1768163441431,-2458.15370692,0.00023983,2]
[401372995,1768163441444,-11765.65185253,0.00023983,2]
[401372996,1768163441456,-608.43607855,0.00023983,2]
[401372997,1768163441465,-3153.10054756,0.00024,2]
[401372998,1768163441475,-1695.62110919,0.00024,2]
[401372999,1768163441486,-13819.92501598,0.00024,2]
[401373000,1768163441637,-500.0,0.00016777,2]
[401373001,1768163441647,-763.51099191,0.00016989,2]
[401373002,1768163441656,-639.76847707,0.00024,2]
[401373003,1768163441667,-426.13638038,0.00024,2]
[401373004,1768163441677,-2270.071,0.00024,2]
[401373287,1768163444405,-4042.36482029,0.00024,2]
[401373289,1768163444416,-1695.2777731,0.00024,2]
[401373291,1768163444428,-777.17506577,0.00024,2]
[401373293,1768163444439,-971.15581075,0.00024,2]
[401373438,1768163446026,-542.55440807,0.00024,2]
[401373440,1768163446037,-186.81,0.00024,14]
[401373442,1768163446048,-2120.0,0.00024007,2]
[401373444,1768163446058,-2470.8363284,0.00024102,2]
[401373446,1768163446068,-220.9984182,0.0002411,12]
[401373448,1768163446077,-733.98308473,0.0002411,2]
[401373450,1768163446086,-5714.0,0.00024111,2]
[401373453,1768163446096,-1176.74395476,0.00024142,2]
[401373455,1768163446105,-8059.77299025,0.00024142,2]
[401373457,1768163446115,-3152.10329572,0.00024142,2]
[401373459,1768163446125,-1359.0151215,0.00024142,2]
[401373461,1768163446134,-841.72002517,0.00024142,2]
[401373463,1768163446144,-420.54942533,0.00024142,2]
[401373466,1768163446153,-1682.19770132,0.00024142,2]
[401373468,1768163446163,-3784.94482798,0.00024142,2]
[401373470,1768163446174,-6728.79080529,0.00024142,2]
[401373472,1768163446183,-526.37553358,0.00024142,2]
[401373474,1768163446192,-2105.50213433,0.00024142,2]
[401373476,1768163446201,-12267.3726503,0.00024142,2]
[401373478,1768163446210,-617.71188131,0.00024142,2]
[401373480,1768163446220,-2470.84752525,0.00024142,2]
[401373482,1768163446228,-8617.12149743,0.00024142,2]
[401373484,1768163446237,-5436.06048598,0.00024142,2]
[401373486,1768163446247,-45240.78015019,0.00024142,2]
[401373489,1768163446262,-926.24447505,0.00024142,2]
[401374222,1768164604531,153.35,5e-05,2]
[401374223,1768164605012,153.35,8.1e-05,2]
[401374226,1768164632113,-552.0,9.408e-05,2]
[401374227,1768164632123,-213.0565325,9.408e-05,2]
[401374228,1768164632132,-300.0,0.00010202,2]
[401374229,1768164632141,-166.3390428,0.00010202,2]
[401374313,1768164638261,-133.6609572,0.00010202,2]
[401374315,1768164638271,-319.67766455,0.00010202,2]
[401374317,1768164638281,-300.0,0.00010406,2]
[401374319,1768164638291,-300.0,0.00010406,2]
[401374321,1768164638301,-1200.0,0.00010406,2]
[401374323,1768164638310,-300.0,0.00010407,2]
[401374326,1768164638320,-300.0,0.00010407,2]
[401374328,1768164638329,-300.0,0.00010407,2]
[401374329,1768164638339,-300.0,0.00010407,2]
[401374332,1768164638350,-300.0,0.00010407,2]
[401374333,1768164638359,-300.0,0.00010407,2]
[401374336,1768164638370,-300.0,0.00010407,2]
[401374337,1768164638379,-300.0,0.00010407,2]
[401374340,1768164638388,-300.0,0.00010407,2]
[401374342,1768164638397,-300.0,0.00010407,2]